{"text_format":"1","workbook":"xlsx","n_sheets":16,"sheets":["Forside","Læsevejledning","Tabel 1","Tabel 2","Tabel 3","Tabel 4","Tabel 5","Tabel 6","Tabel 7","Tabel 8","Tabel 9","Tabel 10","Tabel 11","Tabel 12","Tabel 13","Tabel 14"],"not_rendered":{"charts":0,"images":2,"macros":1,"external_links":0,"defined_names":3,"comments":0,"pivot_tables":0},"unopened":[],"bounds":{"document_bytes":16777216,"sheet_cells":100000,"rows_first":2000,"rows_last":500,"rows_between":2000,"halvings":0,"cell_chars":16384,"cell_head_chars":4096},"cells_cut":0,"cells_raw":0,"read":"whole","date_system":"1900"}

{"sheet":"Forside","index":0,"n_rows":25,"n_cols":2,"rows_kept":25,"cut":false,"hidden":false,"merged":[]}
[]
["Analyse: Geografiske forskelle i ældres forbrug af sundheds- og plejeydelser"]
[]
["Bilag 4: Regionspecifikke nøgletal"]
[]
[]
[]
[]
[]
["Indhold:"]
["Læsevejledning","Læsevejledning"]
["Tabel 1","Det samlede forbrug af sundheds- og plejeydelser"]
["Tabel 2","Sygehusforbruget"]
["Tabel 3","Praksissektorforbruget"]
["Tabel 4","Forbruget i den kommunale sektor"]
["Tabel 5","Almen praksis"]
["Tabel 6","Praktiserende speciallæge"]
["Tabel 7","Fysioterapi"]
["Tabel 8","Medicin"]
["Tabel 9","Planlagt sygehus"]
["Tabel 10","Akut sygehusvæsen"]
["Tabel 11","Hjemmesygepleje"]
["Tabel 12","Plejebolig"]
["Tabel 13","Personlig pleje"]
["Tabel 14","Praktisk hjælp"]

{"sheet":"Læsevejledning","index":1,"n_rows":64,"n_cols":1,"rows_kept":64,"cut":false,"hidden":false,"merged":[]}
[]
["Læsevejledningen"]
[]
["Forsiden"]
[]
[]
[]
["I det følgende præsenteres en række tabeller med regionsspecifikke nøgletal. Generelt er data i nærværende bilag afgrænset på samme måde, som i hovedrapporten. I Bilag 7: ”Metode” er afgrænsninger og definitioner beskrevet. Region Nordjylland er opgjort uden Frederikshavn Kommune grundet manglede data.\n\nAlle tabeller i dette bilag viser tre nøgletal: 1) regionens forbrug af sundheds- og plejeydelser pr. ældre borger målt i kr., 2) regionens statistisk forventede forbrug på baggrund af regionens ældresammensætning af sundheds- og plejeydelser opgjort pr. ældre borger og målt i kr. samt 3) en benchmarkingindikator. Benchmarkingindikatoren viser forholdet mellem regionernes forbrug holdt op imod det niveau, man statistisk set kunne forvente på baggrund af ældresammensætningen i regionen. En benchmarkingindikator lavere end 100 viser, at regionens forbrug er lavere end det forventede forbrug af sundheds- og plejeydelser. En benchmarkingindikator på 100 viser, at regionens forbrug af sundheds- og plejeydelser er ligeså store som de forventede forbrug af sundheds- og plejeydelser. En benchmarkingindikator større end 100 viser, at regionens forbrug af sundheds- og plejeydelser er højere end det forventede forbrug af sundheds- og ple-jeydelser. Af hensyn til pladsmangel er benchmarkingindikatoren forkortet til ”BI” i selve tabellerne.\n\nDe tre nøgletal er vist for alle ældre over 65 år, 65-79-årige og ældre over 80 år. \n\nSummen af de enkelte ydelser i praksissektoren (dvs. tabel 5, 6, 7 og 8) er mindre end det gennemsnitlige samlede praksissektorforbrug pr. ældre (tabel 3), da forbrug af tandlægeydelser indgår i det samlede praksissektorforbrug men ikke som en særskilt ydelse. Derudover kan der forekomme eventuelle mindre afvigelser mellem summen af de enkelte ydelser og det samlede forbrug af ydelser pga. afrunding til nærmeste hele tal. "]
[]
[]
[{"$f":"HYPERLINK(\"#Tabel 1!A1\",(Forside!A12 &\":\"&\"  \"& Forside!B12))","v":"Tabel 1:  Det samlede forbrug af sundheds- og plejeydelser"}]
["Tabel 1 viser det samlede forbrug af sundheds- og plejeydelser, som i denne analyse omfatter i sygehussektor, praksissektor (inkl. medicin), hjemmesygepleje, praktisk hjælp, personlig pleje og plejebolig. "]
[]
[]
[{"$f":"HYPERLINK(\"#Tabel 1!A1\",(Forside!A13 &\":\"&\"  \"& Forside!B13))","v":"Tabel 2:  Sygehusforbruget"}]
["Tabel 2 viser det samlede forbrug i sygehussektoren. "]
[]
[]
[{"$f":"HYPERLINK(\"#Tabel 1!A1\",(Forside!A14 &\":\"&\"  \"& Forside!B14))","v":"Tabel 3:  Praksissektorforbruget"}]
["Tabel 3 viser det samlede forbrug i praksissektoren, dvs. det samlede forbrug af almen praksis, praktiserende speciallæger, tandlæger, fysioterapi, kiropraktor og øvrige yder samt receptpligtig medicin. "]
[]
[]
[{"$f":"HYPERLINK(\"#Tabel 1!A1\",(Forside!A15 &\":\"&\"  \"& Forside!B15))","v":"Tabel 4:  Forbruget i den kommunale sektor"}]
["Tabel 4 viser det samlede forbruget pr. ældre i den kommunale sektor, som i denne analyse omfatter hjemmesygepleje, hjemmepleje og plejebolig. "]
[]
[]
[{"$f":"HYPERLINK(\"#Tabel 1!A1\",(Forside!A16 &\":\"&\"  \"& Forside!B16))","v":"Tabel 5:  Almen praksis"}]
["Tabel 5 viser forbruget af almen praksisydelser. "]
[]
[]
[{"$f":"HYPERLINK(\"#Tabel 1!A1\",(Forside!A17 &\":\"&\"  \"& Forside!B17))","v":"Tabel 6:  Praktiserende speciallæge"}]
["Tabel 6 viser forbruget praktiserende speciallæge (ekskl. tandlæger). "]
[]
[]
[{"$f":"HYPERLINK(\"#Tabel 1!A1\",(Forside!A18 &\":\"&\"  \"& Forside!B18))","v":"Tabel 7:  Fysioterapi"}]
["Tabel 7 viser forbruget af fysioterapi, kiropraktorer o.l. "]
[]
[]
[{"$f":"HYPERLINK(\"#Tabel 1!A1\",(Forside!A19 &\":\"&\"  \"& Forside!B19))","v":"Tabel 8:  Medicin"}]
["Tabel 8 viser forbruget af receptpligtig medicin (tilskudsgivende). "]
[]
[]
[{"$f":"HYPERLINK(\"#Tabel 1!A1\",(Forside!A20 &\":\"&\"  \"& Forside!B20))","v":"Tabel 9:  Planlagt sygehus"}]
["Tabel 9 viser planlagt sygehusforbrug – dvs. planlagte indlæggelser og ambulante besøg."]
[]
[]
[{"$f":"HYPERLINK(\"#Tabel 1!A1\",(Forside!A21 &\":\"&\"  \"& Forside!B21))","v":"Tabel 10:  Akut sygehusvæsen"}]
["Tabel 10 viser akut sygehusforbrug – dvs. akutte indlæggelser og ambulante besøg."]
[]
[]
[{"$f":"HYPERLINK(\"#Tabel 1!A1\",(Forside!A22 &\":\"&\"  \"& Forside!B22))","v":"Tabel 11:  Hjemmesygepleje"}]
["Tabel 11 viser forbruget af hjemmesygeplejeydelser."]
[]
[]
[{"$f":"HYPERLINK(\"#Tabel 1!A23\",(Forside!A23 &\":\"&\"  \"& Forside!B23))","v":"Tabel 12:  Plejebolig"}]
["Tabel 12 viser forbruget af plejebolig."]
[]
[]
[{"$f":"HYPERLINK(\"#Tabel 1!A24\",(Forside!A24 &\":\"&\"  \"& Forside!B24))","v":"Tabel 13:  Personlig pleje"}]
["Tabel 13 viser forbruget af personlig pleje. "]
[]
[]
[{"$f":"HYPERLINK(\"#Tabel 1!A25\",(Forside!A25 &\":\"&\"  \"& Forside!B25))","v":"Tabel 14:  Praktisk hjælp"}]
["Tabel 14 viser forbruget af praktisk hjælp. "]

{"sheet":"Tabel 1","index":2,"n_rows":18,"n_cols":10,"rows_kept":18,"cut":false,"hidden":false,"merged":[[9,1,9,3],[9,4,9,6],[9,7,9,9]]}
[]
[{"$f":"Forside!A12","v":"Tabel 1"},{"$f":"Forside!B12","v":"Det samlede forbrug af sundheds- og plejeydelser"}]
[]
["Forsiden"]
[]
[]
[]
["Det samlede forbrug af sundheds- og plejeydelser pr. person over 65 år, 2022"]
[]
[null,"Alle ældre ",null,null,"65-79-årige ",null,null,"80+-årige"]
["Region","Forbrug","Forventet","BI","Forbrug","Forventet","BI","Forbrug","Forventet","BI"]
["Hovedstaden",82174,77949,105.4,57727,54665,105.6,156685,149382,104.9]
["Midtjylland",73455,74407,98.7,50700,51374,98.7,145883,147828,98.7]
["Nordjylland",73024,73242,99.7,49707,49976,99.5,144471,143899,100.4]
["Sjælland",72361,72907,99.3,52093,52803,98.7,138913,139101,99.9]
["Syddanmark",72646,76202,95.3,50664,52976,95.6,138237,144912,95.4]
["Landsplan",75442,"-","-",52757,"-","-",145811,"-","-"]
["Kilde: Danmarks Statistik, Sundhedsdatastyrelsen og egne beregninger."]

{"sheet":"Tabel 2","index":3,"n_rows":18,"n_cols":10,"rows_kept":18,"cut":false,"hidden":false,"merged":[[9,1,9,3],[9,4,9,6],[9,7,9,9]]}
[]
[{"$f":"Forside!A13","v":"Tabel 2"},{"$f":"Forside!B13","v":"Sygehusforbruget"}]
[]
["Forsiden"]
[]
[]
[]
["Det samlede sygehusforbrug pr. person over 65 år, 2022"]
[]
[null,"Alle ældre",null,null,"65-79-årige",null,null,"80+-årige"]
["Region","Forbrug","Forventet","BI","Forbrug","Forventet","BI","Forbrug","Forventet","BI"]
["Hovedstaden",32490,30631,106.1,30202,28634,105.5,39463,36828,107.2]
["Midtjylland",28578,29023,98.5,27049,27155,99.6,33446,34978,95.6]
["Nordjylland",27876,29565,94.3,26320,27694,95,32644,35177,92.8]
["Sjælland",30226,30489,99.1,28271,28875,97.9,36645,35961,101.9]
["Syddanmark",29657,30432,97.5,27813,28469,97.7,35160,36178,97.2]
["Landsplan",30112,"-","-",28225,"-","-",35967,"-","-"]
["Kilde: Danmarks Statistik, Sundhedsdatastyrelsen og egne beregninger."]

{"sheet":"Tabel 3","index":4,"n_rows":18,"n_cols":10,"rows_kept":18,"cut":false,"hidden":false,"merged":[[9,1,9,3],[9,4,9,6],[9,7,9,9]]}
[]
[{"$f":"Forside!A14","v":"Tabel 3"},{"$f":"Forside!B14","v":"Praksissektorforbruget"}]
[]
["Forsiden"]
[]
[]
[]
["Praksissektorforbruget pr. person over 65 år, 2022"]
[]
[null,"Alle ældre ",null,null,"65-79-årige",null,null,"80+-årige "]
["Region","Forbrug","Forventet","BI","Forbrug","Forventet","BI","Forbrug","Forventet","BI"]
["Hovedstaden",7647,7253,105.4,7198,6804,105.8,9015,8634,104.4]
["Midtjylland",6973,6949,100.4,6510,6553,99.3,8446,8220,102.8]
["Nordjylland",6726,6867,98,6304,6465,97.5,8020,8066,99.4]
["Sjælland",6824,7024,97.2,6530,6655,98.1,7788,8229,94.6]
["Syddanmark",6809,7094,96,6423,6688,96,7960,8286,96.1]
["Landsplan",7071,"-","-",6662,"-","-",8341,"-","-"]
["Kilde: Danmarks Statistik, Sundhedsdatastyrelsen og egne beregninger."]

{"sheet":"Tabel 4","index":5,"n_rows":18,"n_cols":10,"rows_kept":18,"cut":false,"hidden":false,"merged":[[9,1,9,3],[9,4,9,6],[9,7,9,9]]}
[]
[{"$f":"Forside!A15","v":"Tabel 4"},{"$f":"Forside!B15","v":"Forbruget i den kommunale sektor"}]
[]
["Forsiden"]
[]
[]
[]
["Forbruget i den kommunale sektor pr. person over 65 år, 2022"]
[]
[null,"Alle ældre",null,null,"65-79-årige",null,null,"80+-årige"]
["Region","Forbrug","Forventet","BI","Forbrug","Forventet","BI","Forbrug","Forventet","BI"]
["Hovedstaden",42037,39642,106,20326,18801,108.1,108207,103798,104.2]
["Midtjylland",37904,38087,99.5,17141,17358,98.8,103991,104188,99.8]
["Nordjylland",38422,36538,105.2,17083,15525,110,103807,100262,103.5]
["Sjælland",35311,35317,100,17291,17196,100.6,94480,94958,99.5]
["Syddanmark",36180,38146,94.8,16429,17416,94.3,95116,99862,95.2]
["Landsplan",38258,"-","-",17870,"-","-",101502,"-","-"]
["Kilde: Danmarks Statistik, Sundhedsdatastyrelsen og egne beregninger."]

{"sheet":"Tabel 5","index":6,"n_rows":18,"n_cols":10,"rows_kept":18,"cut":false,"hidden":false,"merged":[[9,1,9,3],[9,4,9,6],[9,7,9,9]]}
[]
[{"$f":"Forside!A16","v":"Tabel 5"},{"$f":"Forside!B16","v":"Almen praksis"}]
[]
["Forsiden"]
[]
[]
[]
["Forbruget af almen praksis pr. person over 65 år, 2022"]
[]
[null,"Alle ældre",null,null,"65-79-årige",null,null,"80+-årige"]
["Region","Forbrug","Forventet","BI","Forbrug","Forventet","BI","Forbrug","Forventet","BI"]
["Hovedstaden",1563,1638,95.4,1361,1425,95.5,2178,2283,95.4]
["Midtjylland",1705,1639,104.1,1482,1431,103.6,2415,2303,104.9]
["Nordjylland",1738,1646,105.5,1506,1433,105.1,2448,2300,106.4]
["Sjælland",1499,1639,91.4,1332,1447,92.1,2047,2270,90.2]
["Syddanmark",1755,1668,105.2,1532,1452,105.5,2420,2311,104.7]
["Landsplan",1646,"-","-",1437,"-","-",2294,"-","-"]
["Kilde: Danmarks Statistik, Sundhedsdatastyrelsen og egne beregninger."]

{"sheet":"Tabel 6","index":7,"n_rows":18,"n_cols":10,"rows_kept":18,"cut":false,"hidden":false,"merged":[[9,1,9,3],[9,4,9,6],[9,7,9,9]]}
[]
[{"$f":"Forside!A17","v":"Tabel 6"},{"$f":"Forside!B17","v":"Praktiserende speciallæge"}]
[]
["Forsiden"]
[]
[]
[]
["Forbruget af praktiserende speciallæger pr. person over 65 år, 2022"]
[]
[null,"Alle ældre",null,null,"65-79-årige",null,null,"80+-årige"]
["Region","Forbrug","Forventet","BI","Forbrug","Forventet","BI","Forbrug","Forventet","BI"]
["Hovedstaden",1552,1234,125.7,1583,1246,127,1457,1206,120.8]
["Midtjylland",932,1104,84.4,926,1109,83.6,949,1086,87.3]
["Nordjylland",887,1073,82.7,887,1077,82.4,888,1052,84.4]
["Sjælland",1149,1117,102.9,1152,1119,103,1140,1111,102.6]
["Syddanmark",937,1089,86,930,1093,85,959,1074,89.3]
["Landsplan",1136,"-","-",1142,"-","-",1118,"-","-"]
["Kilde: Danmarks Statistik, Sundhedsdatastyrelsen og egne beregninger."]

{"sheet":"Tabel 7","index":8,"n_rows":18,"n_cols":10,"rows_kept":18,"cut":false,"hidden":false,"merged":[[9,1,9,3],[9,4,9,6],[9,7,9,9]]}
[]
[{"$f":"Forside!A18","v":"Tabel 7"},{"$f":"Forside!B18","v":"Fysioterapi"}]
[]
["Forsiden"]
[]
[]
[]
["Forbruget af fysioterapi pr. person over 65 år, 2022"]
[]
[null,"Alle ældre",null,null,"65-79-årige ",null,null,"80+-årige "]
["Region","Forbrug","Forventet","BI","Forbrug","Forventet","BI","Forbrug","Forventet","BI"]
["Hovedstaden",1162,1055,110.1,1031,960,107.4,1561,1352,115.4]
["Midtjylland",1098,1016,108,1020,961,106.1,1348,1199,112.4]
["Nordjylland",953,949,100.4,917,891,103,1061,1114,95.3]
["Sjælland",832,982,84.7,808,925,87.4,909,1169,77.7]
["Syddanmark",902,1003,89.9,874,946,92.3,985,1163,84.7]
["Landsplan",1011,"-","-",943,"-","-",1222,"-","-"]
["Kilde: Danmarks Statistik, Sundhedsdatastyrelsen og egne beregninger."]

{"sheet":"Tabel 8","index":9,"n_rows":18,"n_cols":10,"rows_kept":18,"cut":false,"hidden":false,"merged":[[9,1,9,3],[9,4,9,6],[9,7,9,9]]}
[]
[{"$f":"Forside!A19","v":"Tabel 8"},{"$f":"Forside!B19","v":"Medicin"}]
[]
["Forsiden"]
[]
[]
[]
["Forbruget af medicin pr. person over 65 år, 2022"]
[]
[null,"Alle ældre ",null,null,"65-79-årige ",null,null,"80+-årige "]
["Region","Forbrug","Forventet","BI","Forbrug","Forventet","BI","Forbrug","Forventet","BI"]
["Hovedstaden",2885,2871,100.5,2711,2691,100.7,3417,3423,99.8]
["Midtjylland",2805,2753,101.9,2612,2580,101.2,3417,3305,103.4]
["Nordjylland",2762,2774,99.6,2568,2600,98.8,3357,3293,102]
["Sjælland",2902,2850,101.8,2768,2700,102.5,3343,3341,100.1]
["Syddanmark",2821,2908,97,2659,2734,97.3,3302,3422,96.5]
["Landsplan",2843,"-","-",2672,"-","-",3372,"-","-"]
["Kilde: Danmarks Statistik, Sundhedsdatastyrelsen og egne beregninger."]

{"sheet":"Tabel 9","index":10,"n_rows":18,"n_cols":10,"rows_kept":18,"cut":false,"hidden":false,"merged":[[9,1,9,3],[9,4,9,6],[9,7,9,9]]}
[]
[{"$f":"Forside!A20","v":"Tabel 9"},{"$f":"Forside!B20","v":"Planlagt sygehus"}]
[]
["Forsiden"]
[]
[]
[]
["Forbruget af det planlagte sygehusvæsen pr. person over 65 år, 2022"]
[]
[null,"Alle ældre ",null,null,"65-79-årige ",null,null,"80+-årige "]
["Region","Forbrug","Forventet","BI","Forbrug","Forventet","BI","Forbrug","Forventet","BI"]
["Hovedstaden",19858,18695,106.2,20103,19066,105.4,19110,17641,108.3]
["Midtjylland",17205,17698,97.2,17822,18071,98.6,15240,16518,92.3]
["Nordjylland",17024,17770,95.8,17438,18248,95.6,15753,16261,96.9]
["Sjælland",17224,18562,92.8,17724,19046,93.1,15581,17073,91.3]
["Syddanmark",18800,18319,102.6,19186,18769,102.2,17649,16919,104.3]
["Landsplan",18290,"-","-",18706,"-","-",17001,"-","-"]
["Kilde: Danmarks Statistik, Sundhedsdatastyrelsen og egne beregninger."]

{"sheet":"Tabel 10","index":11,"n_rows":18,"n_cols":10,"rows_kept":18,"cut":false,"hidden":false,"merged":[[9,1,9,3],[9,4,9,6],[9,7,9,9]]}
[]
[{"$f":"Forside!A21","v":"Tabel 10"},{"$f":"Forside!B21","v":"Akut sygehusvæsen"}]
[]
["Forsiden"]
[]
[]
[]
["Forbruget af det akutte sygehusvæsen pr. person over 65 år, 2022"]
[]
[null,"Alle ældre ",null,null,"65-79-årige ",null,null,"80+-årige "]
["Region","Forbrug","Forventet","BI","Forbrug","Forventet","BI","Forbrug","Forventet","BI"]
["Hovedstaden",12633,11934,105.9,10100,9605,105.2,20353,19163,106.2]
["Midtjylland",11373,11299,100.7,9226,9067,101.8,18206,18423,98.8]
["Nordjylland",10852,11784,92.1,8882,9431,94.2,16891,18899,89.4]
["Sjælland",13002,11902,109.2,10547,9823,107.4,21064,18862,111.7]
["Syddanmark",10857,12094,89.8,8627,9686,89.1,17511,19225,91.1]
["Landsplan",11822,"-","-",9519,"-","-",18967,"-","-"]
["Kilde: Danmarks Statistik, Sundhedsdatastyrelsen og egne beregninger."]

{"sheet":"Tabel 11","index":12,"n_rows":18,"n_cols":10,"rows_kept":18,"cut":false,"hidden":false,"merged":[[9,1,9,3],[9,4,9,6],[9,7,9,9]]}
[]
[{"$f":"Forside!A22","v":"Tabel 11"},{"$f":"Forside!B22","v":"Hjemmesygepleje"}]
[]
["Forsiden"]
[]
[]
[]
["Forbruget af hjemmesygepleje pr. person over 65 år, 2022"]
[]
[null,"Alle ældre ",null,null,"65-79-årige ",null,null,"80+-årige "]
["Region","Forbrug","Forventet","BI","Forbrug","Forventet","BI","Forbrug","Forventet","BI"]
["Hovedstaden",3823,4352,87.8,2060,2346,87.8,9195,10504,87.5]
["Midtjylland",4060,4178,97.2,2131,2182,97.7,10198,10536,96.8]
["Nordjylland",4630,4512,102.6,2525,2290,110.2,11080,11176,99.1]
["Sjælland",4543,4248,106.9,2470,2342,105.5,11348,10505,108]
["Syddanmark",5190,4717,110,2667,2475,107.8,12718,11384,111.7]
["Landsplan",4394,"-","-",2331,"-","-",10793,"-","-"]
["Kilde: Danmarks Statistik, Sundhedsdatastyrelsen og egne beregninger."]

{"sheet":"Tabel 12","index":13,"n_rows":18,"n_cols":10,"rows_kept":18,"cut":false,"hidden":false,"merged":[[9,1,9,3],[9,4,9,6],[9,7,9,9]]}
[]
[{"$f":"Forside!A23","v":"Tabel 12"},{"$f":"Forside!B23","v":"Plejebolig"}]
[]
["Forsiden"]
[]
[]
[]
["Forbruget af plejebolig pr. person over 65 år, 2022"]
[]
[null,"Alle ældre ",null,null,"65-79-årige ",null,null,"80+-årige "]
["Region","Forbrug","Forventet","BI","Forbrug","Forventet","BI","Forbrug","Forventet","BI"]
["Hovedstaden",25876,23933,108.1,11378,10503,108.3,70064,65474,107]
["Midtjylland",24025,23744,101.2,9870,9852,100.2,69079,68205,101.3]
["Nordjylland",24586,21539,114.1,9370,7959,117.7,71213,63046,113]
["Sjælland",18958,20891,90.7,8551,9343,91.5,53128,58909,90.2]
["Syddanmark",21014,22294,94.3,8706,9175,94.9,57742,61453,94]
["Landsplan",23042,"-","-",9742,"-","-",64298,"-","-"]
["Kilde: Danmarks Statistik, Sundhedsdatastyrelsen og egne beregninger."]

{"sheet":"Tabel 13","index":14,"n_rows":18,"n_cols":10,"rows_kept":18,"cut":false,"hidden":false,"merged":[[9,1,9,3],[9,4,9,6],[9,7,9,9]]}
[]
[{"$f":"Forside!A24","v":"Tabel 13"},{"$f":"Forside!B24","v":"Personlig pleje"}]
[]
["Forsiden"]
[]
[]
[]
["Forbruget af personlig pleje pr. person over 65 år, 2022"]
[]
[null,"Alle ældre ",null,null,"65-79-årige ",null,null,"80+-årige "]
["Region","Forbrug","Forventet","BI","Forbrug","Forventet","BI","Forbrug","Forventet","BI"]
["Hovedstaden",9004,8346,107.9,5122,4573,112,20835,19983,104.3]
["Midtjylland",7214,7437,97,3867,4081,94.8,17866,18240,98]
["Nordjylland",7065,7761,91,4093,4048,101.1,16173,18935,85.4]
["Sjælland",8782,7490,117.3,4725,4224,111.9,22103,18351,120.4]
["Syddanmark",7193,8238,87.3,3695,4442,83.2,17632,19607,89.9]
["Landsplan",7950,"-","-",4339,"-","-",19150,"-","-"]
["Kilde: Danmarks Statistik, Sundhedsdatastyrelsen og egne beregninger."]

{"sheet":"Tabel 14","index":15,"n_rows":18,"n_cols":10,"rows_kept":18,"cut":false,"hidden":false,"merged":[[9,1,9,3],[9,4,9,6],[9,7,9,9]]}
[]
[{"$f":"Forside!A25","v":"Tabel 14"},{"$f":"Forside!B25","v":"Praktisk hjælp"}]
[]
["Forsiden"]
[]
[]
[]
["Forbruget af praktisk hjælp pr. person over 65 år, 2022"]
[]
[null,"Alle ældre ",null,null,"65-79-årige ",null,null,"80+-årige "]
["Region","Forbrug","Forventet","BI","Forbrug","Forventet","BI","Forbrug","Forventet","BI"]
["Hovedstaden",3334,3112,107.1,1766,1611,109.7,8114,7744,104.8]
["Midtjylland",2605,2671,97.6,1273,1338,95.1,6847,6912,99.1]
["Nordjylland",2140,2812,76.099999999999994,1096,1340,81.8,5341,7209,74.099999999999994]
["Sjælland",3029,2704,112,1546,1412,109.5,7901,6957,113.6]
["Syddanmark",2782,2949,94.3,1361,1474,92.4,7023,7337,95.7]
["Landsplan",2872,"-","-",1457,"-","-",7262,"-","-"]
["Kilde: Danmarks Statistik, Sundhedsdatastyrelsen og egne beregninger."]